fUSD/lending_fUSD_20251224
["ID","MTS","AMOUNT","RATE_DAILY","PERIOD"]
[399685349,1766620247676,-500.0,0.00022415,2]
[399685350,1766620247686,-500.0,0.00022415,2]
[399685351,1766620247697,-500.0,0.00022415,2]
[399685352,1766620247707,-500.0,0.00022415,2]
[399685353,1766620247717,-500.0,0.00022415,2]
[399685354,1766620247726,-500.0,0.00022415,2]
[399685355,1766620247737,-500.0,0.00022415,2]
[399685356,1766620247748,-500.0,0.00022415,2]
[399685357,1766620247758,-500.0,0.00022415,2]
[399685358,1766620247769,-500.0,0.00022415,2]
[399685359,1766620247779,-500.0,0.00022415,2]
[399685360,1766620247788,-500.0,0.00022415,2]
[399685361,1766620247798,-500.0,0.00022415,2]
[399685362,1766620247808,-500.0,0.00022415,2]
[399685363,1766620247817,-500.0,0.00022415,2]
[399685364,1766620247827,-500.0,0.00022415,2]
[399685365,1766620247837,-500.0,0.00022415,2]
[399685366,1766620247847,-500.0,0.00022415,2]
[399685367,1766620247857,-500.0,0.00022415,2]
[399685368,1766620247867,-500.0,0.00022415,2]
[399685369,1766620247876,-500.0,0.00022415,2]
[399685370,1766620247887,-500.0,0.00022415,2]
[399685371,1766620247896,-500.0,0.00022415,2]
[399685372,1766620247907,-500.0,0.00022415,2]
[399685373,1766620247917,-500.0,0.00022415,2]
[399685374,1766620247926,-500.0,0.00022415,2]
[399685375,1766620247936,-500.0,0.00022415,2]
[399685376,1766620247946,-500.0,0.00022415,2]
[399685377,1766620247955,-500.0,0.00022415,2]
[399685378,1766620247966,-500.0,0.00022415,2]
[399685379,1766620247976,-500.0,0.00022415,2]
[399685380,1766620247985,-500.0,0.00022415,2]
[399685381,1766620247995,-500.0,0.00022415,2]
[399685382,1766620248005,-500.0,0.00022415,2]
[399685383,1766620248015,-500.0,0.00022415,2]
[399685384,1766620248025,-500.0,0.00022415,2]
[399685385,1766620248035,-500.0,0.00022415,2]
[399685386,1766620248044,-500.0,0.00022415,2]
[399685387,1766620248053,-500.0,0.00022415,2]
[399685388,1766620248063,-500.0,0.00022415,2]
[399685389,1766620248072,-655.0,0.00022415,2]
[399685390,1766620248083,-300.0,0.0002293,2]
[399685391,1766620248092,-300.0,0.00022967,2]
[399685392,1766620248102,-300.0,0.00022975,2]
[399685393,1766620248112,-300.0,0.00022995,2]
[399685394,1766620248122,-400.0,0.00023,2]
[399685395,1766620248132,-300.0,0.00023008,2]
[399685396,1766620248142,-400.0,0.00023014,7]
[399685397,1766620248151,-1000.0,0.00023014,2]
[399685398,1766620248161,-150.0,0.00023037,2]
[399685399,1766620248172,-300.0,0.00023044,2]
[399685400,1766620248181,-254.13060141,0.00023084,2]
[399685401,1766620248191,-300.0,0.00023086,2]
[399685402,1766620248201,-210.31131003,0.00023087,2]
[399685403,1766620248211,-300.0,0.00023094,2]
[399685404,1766620248221,-300.0,0.00023114,2]
[399685405,1766620248231,-300.0,0.00023115,2]
[399685406,1766620248242,-1000.0,0.00023124,2]
[399685407,1766620248252,-300.0,0.00023124,2]
[399685408,1766620248262,-300.0,0.00023132,2]
[399685409,1766620248273,-150.0,0.00023143,2]
[399685410,1766620248282,-1000.0,0.00023151,2]
[399685411,1766620248293,-300.0,0.00023154,2]
[399685412,1766620248303,-300.0,0.0002316,2]
[399685413,1766620248313,-219.92,0.0002316,2]
[399685414,1766620248323,-300.0,0.00023161,2]
[399685415,1766620248332,-150.0,0.00023163,2]
[399685416,1766620248342,-1000.0,0.00023165,2]
[399685417,1766620248352,-1000.0,0.0002317,2]
[399685418,1766620248362,-150.0,0.0002318,2]
[399685419,1766620248372,-1000.0,0.00023196,2]
[399685420,1766620248381,-150.0,0.00023203,2]
[399685421,1766620248392,-219.91677672,0.00023205,2]
[399685422,1766620248402,-1000.0,0.00023209,2]
[399685423,1766620248412,-150.0,0.00023215,2]
[399685424,1766620248422,-300.0,0.00023219,2]
[399685425,1766620248433,-1609.0,0.00023221,2]
[399685426,1766620248443,-612.0,0.00023221,2]
[399685427,1766620248453,-3458.0,0.00023221,2]
[399685428,1766620248462,-1326.0,0.00023221,2]
[399685429,1766620248472,-1263.0,0.00023221,2]
[399685430,1766620248481,-432.0,0.00023221,2]
[399685431,1766620248491,-1198.0,0.00023221,2]
[399685432,1766620248501,-912.0,0.00023221,2]
[399685433,1766620248511,-4807.0,0.00023221,2]
[399685434,1766620248521,-2430.0,0.00023221,2]
[399685435,1766620248531,-300.0,0.00023222,2]
[399685436,1766620248541,-518.49334789,0.00023225,2]
[399685437,1766620248551,-1000.0,0.00023226,2]
[399685438,1766620248561,-151.42395308,0.00023232,2]
[399685439,1766620248571,-300.0,0.00023243,2]
[399685440,1766620248580,-150.0,0.00023254,2]
[399685441,1766620248590,-1000.0,0.00023259,2]
[399685442,1766620248600,-150.0,0.00023259,2]
[399685443,1766620248610,-1000.0,0.00023279,2]
[399685444,1766620248620,-150.0,0.000233,2]
[399685445,1766620248629,-579.11026946,0.000233,2]
[399685446,1766620248639,-1000.0,0.00023304,2]
[399685447,1766620248649,-300.0,0.00023328,2]
[399685448,1766620248659,-300.0,0.00023345,2]
[399685449,1766620248668,-150.0,0.00023388,2]
[399685450,1766620248679,-1000.0,0.00023392,2]
[399685451,1766620248688,-300.0,0.00023393,2]
[399685452,1766620248704,-300.0,0.00023401,2]
[399685453,1766620248714,-1000.0,0.00023405,2]
[399685454,1766620248723,-1000.0,0.00023405,2]
[399685455,1766620248733,-384.79665381,0.00023409,2]
[399685456,1766620248743,-300.0,0.00023414,2]
[399685457,1766620248752,-331.43589909,0.0002342,2]
[399685458,1766620248763,-1000.0,0.0002342,2]
[399685459,1766620248773,-621.78829552,0.00023422,2]
[399685460,1766620248783,-300.0,0.00023425,2]
[399685461,1766620248793,-1000.0,0.00023435,2]
[399685462,1766620248803,-300.0,0.0002346,2]
[399685463,1766620248812,-300.0,0.0002346,2]
[399685464,1766620248823,-300.0,0.00023465,2]
[399685465,1766620248832,-1000.0,0.00023468,2]
[399685466,1766620248842,-1000.0,0.00023469,2]
[399685467,1766620248852,-1000.0,0.00023476,2]
[399685468,1766620248862,-1000.0,0.00023496,2]
[399685469,1766620248871,-300.0,0.00023499,2]
[399685470,1766620248882,-300.0,0.00023499,2]
[399685471,1766620248892,-178913.68,0.000235,7]
[399685472,1766620248902,-1000.0,0.00023511,2]
[399685473,1766620248912,-1000.0,0.00023512,2]
[399685474,1766620248923,-150.0,0.00023537,2]
[399685475,1766620248932,-300.0,0.00023542,2]
[399685476,1766620248942,-300.0,0.00023553,2]
[399685477,1766620248951,-150.0,0.00023553,2]
[399685478,1766620248961,-150.0,0.00023557,2]
[399685479,1766620248971,-220.55696705,0.00023557,2]
[399685480,1766620248983,-150.0,0.00023562,2]
[399685481,1766620248992,-300.0,0.00023564,2]
[399685482,1766620249003,-1000.0,0.00023574,2]
[399685483,1766620249013,-150.0,0.00023574,2]
[399685484,1766620249023,-300.0,0.0002358,2]
[399685485,1766620249033,-2000.0,0.00023582,2]
[399685486,1766620249043,-186.82,0.000236,9]
[399685487,1766620249053,-150.0,0.00023622,2]
[399685488,1766620249068,-300.0,0.00023623,2]
[399685489,1766620249088,-150.0,0.00023624,2]
[399685490,1766620249097,-7911.8724195,0.00023624,2]
[399685491,1766620249107,-150.0,0.00023625,2]
[399685492,1766620249116,-150.0,0.00023629,2]
[399685493,1766620249127,-1000.0,0.00023634,2]
[399685494,1766620249136,-150.0,0.00023635,2]
[399685495,1766620249146,-300.0,0.00023639,2]
[399685496,1766620249155,-300.0,0.00023656,2]
[399685497,1766620249166,-1000.0,0.00023678,2]
[399685498,1766620249175,-300.0,0.00023679,2]
[399685499,1766620249186,-1000.0,0.00023681,2]
[399685500,1766620249195,-1000.0,0.00023696,2]
[399685501,1766620249206,-300.250713,0.00023699,11]
[399685502,1766620249216,-289.6,0.000237,7]
[399685503,1766620249226,-153.0,0.000237,2]
[399685504,1766620249236,-152.0,0.000237,2]
[399685505,1766620249246,-152.0,0.000237,2]
[399685506,1766620249256,-152.0,0.000237,2]
[399685507,1766620249266,-152.0,0.000237,2]
[399685508,1766620249276,-152.0,0.000237,2]
[399685509,1766620249286,-152.0,0.000237,2]
[399685510,1766620249299,-1256.0,0.000237,2]
[399685511,1766620249308,-152.0,0.000237,2]
[399685512,1766620249318,-152.0,0.000237,2]
[399685513,1766620249328,-1256.0,0.000237,2]
[399685514,1766620249338,-152.0,0.000237,2]
[399685515,1766620249348,-152.0,0.000237,2]
[399685516,1766620249358,-836.0,0.000237,2]
[399685517,1766620249367,-1256.0,0.000237,2]
[399685518,1766620249376,-152.0,0.000237,2]
[399685519,1766620249386,-152.0,0.000237,2]
[399685520,1766620249396,-836.0,0.000237,2]
[399685521,1766620249406,-1256.0,0.000237,2]
[399685522,1766620249415,-152.0,0.000237,2]
[399685523,1766620249425,-152.0,0.000237,2]
[399685524,1766620249434,-836.0,0.000237,2]
[399685525,1766620249444,-152.0,0.000237,2]
[399685526,1766620249453,-1256.0,0.000237,2]
[399685527,1766620249463,-152.0,0.000237,2]
[399685528,1766620249473,-836.0,0.000237,2]
[399685529,1766620249483,-1256.0,0.000237,2]
[399685530,1766620249492,-152.0,0.000237,2]
[399685531,1766620249502,-152.0,0.000237,2]
[399685532,1766620249511,-875.75031902,0.000237,2]
[399685533,1766620249521,-152.0,0.000237,2]
[399685534,1766620249531,-152.0,0.000237,2]
[399685535,1766620249540,-1256.0,0.000237,2]
[399685536,1766620249550,-152.0,0.000237,2]
[399685537,1766620249559,-152.0,0.000237,2]
[399685538,1766620249568,-1256.0,0.000237,2]
[399685539,1766620249577,-154.0,0.000237,2]
[399685540,1766620249586,-152.0,0.000237,2]
[399685541,1766620249595,-152.0,0.000237,2]
[399685542,1766620249605,-1256.0,0.000237,2]
[399685543,1766620249615,-154.61412107,0.000237,2]
[399685544,1766620249624,-152.0,0.000237,2]
[399685545,1766620249633,-152.0,0.000237,2]
[399685546,1766620249643,-1256.0,0.000237,2]
[399685547,1766620249652,-152.0,0.000237,2]
[399685548,1766620249661,-152.0,0.000237,2]
[399685549,1766620249671,-1256.0,0.000237,2]
[399685550,1766620249681,-152.0,0.000237,2]
[399685551,1766620249691,-1256.0,0.000237,2]
[399685552,1766620249705,-152.0,0.000237,2]
[399685553,1766620249714,-152.0,0.000237,2]
[399685554,1766620249727,-1256.0,0.000237,2]
[399685555,1766620249739,-152.0,0.000237,2]
[399685556,1766620249749,-152.0,0.000237,2]
[399685557,1766620249759,-1256.0,0.000237,2]
[399685558,1766620249769,-152.0,0.000237,2]
[399685559,1766620249780,-152.0,0.000237,2]
[399685560,1766620249790,-1256.0,0.000237,2]
[399685561,1766620249799,-152.0,0.000237,2]
[399685562,1766620249809,-152.0,0.000237,2]
[399685563,1766620249819,-1256.0,0.000237,2]
[399685564,1766620249829,-152.0,0.000237,2]
[399685565,1766620249838,-152.0,0.000237,2]
[399685566,1766620249848,-1256.0,0.000237,2]
[399685567,1766620249858,-152.0,0.000237,2]
[399685568,1766620249868,-152.0,0.000237,2]
[399685569,1766620249877,-1256.0,0.000237,2]
[399685570,1766620249888,-152.0,0.000237,2]
[399685571,1766620249898,-152.0,0.000237,2]
[399685572,1766620249907,-1256.0,0.000237,2]
[399685573,1766620249918,-152.0,0.000237,2]
[399685574,1766620249928,-152.0,0.000237,2]
[399685575,1766620249938,-152.0,0.000237,2]
[399685576,1766620249947,-1256.0,0.000237,2]
[399685577,1766620249957,-152.0,0.000237,2]
[399685578,1766620249967,-152.0,0.000237,2]
[399685579,1766620249976,-152.0,0.000237,2]
[399685580,1766620249986,-1256.0,0.000237,2]
[399685581,1766620249995,-152.0,0.000237,2]
[399685582,1766620250005,-152.0,0.000237,2]
[399685583,1766620250015,-1256.0,0.000237,2]
[399685584,1766620250025,-286.13362621,0.000237,2]
[399685585,1766620250034,-152.0,0.000237,2]
[399685586,1766620250044,-1256.0,0.000237,2]
[399685587,1766620250054,-1256.0,0.000237,2]
[399685588,1766620250063,-152.0,0.000237,2]
[399685589,1766620250074,-1256.0,0.000237,2]
[399685590,1766620250085,-152.0,0.000237,2]
[399685591,1766620250095,-1256.0,0.000237,2]
[399685592,1766620250105,-152.0,0.000237,2]
[399685593,1766620250114,-1256.0,0.000237,2]
[399685594,1766620250123,-152.0,0.000237,2]
[399685595,1766620250133,-1256.0,0.000237,2]
[399685596,1766620250143,-1256.0,0.000237,2]
[399685597,1766620250153,-152.0,0.000237,2]
[399685598,1766620250163,-152.0,0.000237,2]
[399685599,1766620250173,-1256.0,0.000237,2]
[399685600,1766620250182,-152.0,0.000237,2]
[399685601,1766620250192,-1256.0,0.000237,2]
[399685602,1766620250202,-1256.0,0.000237,2]
[399685603,1766620250211,-152.0,0.000237,2]
[399685604,1766620250221,-152.0,0.000237,2]
[399685605,1766620250231,-1256.0,0.000237,2]
[399685606,1766620250240,-209.24615672,0.000237,2]
[399685607,1766620250249,-1256.0,0.000237,2]
[399685608,1766620250259,-1256.0,0.000237,2]
[399685609,1766620250268,-1256.0,0.000237,2]
[399685610,1766620250278,-1256.0,0.000237,2]
[399685611,1766620250287,-1256.0,0.000237,2]
[399685612,1766620250298,-153.0,0.000237,2]
[399685613,1766620250310,-1256.0,0.000237,2]
[399685614,1766620250324,-153.0,0.000237,2]
[399685615,1766620250338,-1256.0,0.000237,2]
[399685616,1766620250352,-153.0,0.000237,2]
[399685617,1766620250365,-1256.0,0.000237,2]
[399685618,1766620250376,-153.0,0.000237,2]
[399685619,1766620250386,-1256.0,0.000237,2]
[399685620,1766620250399,-153.0,0.000237,2]
[399685621,1766620250411,-153.0,0.000237,2]
[399685622,1766620250424,-1256.0,0.000237,2]
[399685623,1766620250436,-153.0,0.000237,2]
[399685624,1766620250450,-1256.0,0.000237,2]
[399685625,1766620250464,-153.0,0.000237,2]
[399685626,1766620250477,-1256.0,0.000237,2]
[399685627,1766620250491,-153.0,0.000237,2]
[399685628,1766620250504,-1256.0,0.000237,2]
[399685629,1766620250516,-153.0,0.000237,2]
[399685630,1766620250528,-1256.0,0.000237,2]
[399685631,1766620250538,-153.0,0.000237,2]
[399685632,1766620250549,-1256.0,0.000237,2]
[399685633,1766620250562,-153.0,0.000237,2]
[399685634,1766620250575,-1256.0,0.000237,2]
[399685635,1766620250588,-153.0,0.000237,2]
[399685636,1766620250600,-1256.0,0.000237,2]
[399685637,1766620250617,-153.0,0.000237,2]
[399685638,1766620250630,-1256.0,0.000237,2]
[399685639,1766620250643,-153.0,0.000237,2]
[399685640,1766620250655,-1256.0,0.000237,2]
[399685641,1766620250669,-153.0,0.000237,2]
[399685642,1766620250681,-1172.26197719,0.000237,2]
[399685643,1766620250694,-153.0,0.000237,2]
[399685644,1766620250706,-153.0,0.000237,2]
[399685645,1766620250720,-153.0,0.000237,2]
[399685646,1766620250734,-158.0,0.000237,2]
[399685647,1766620250747,-153.0,0.000237,2]
[399685648,1766620250760,-153.0,0.000237,2]
[399685649,1766620250772,-158.0,0.000237,2]
[399685650,1766620250786,-153.0,0.000237,2]
[399685651,1766620250799,-158.0,0.000237,2]
[399685652,1766620250811,-153.0,0.000237,2]
[399685653,1766620250824,-153.0,0.000237,2]
[399685654,1766620250837,-158.0,0.000237,2]
[399685655,1766620250850,-153.0,0.000237,2]
[399685656,1766620250863,-158.0,0.000237,2]
[399685657,1766620250876,-153.0,0.000237,2]
[399685658,1766620250889,-153.66193719,0.000237,2]
[399685659,1766620250900,-153.0,0.000237,2]
[399685660,1766620250912,-153.0,0.000237,2]
[399685661,1766620250925,-153.0,0.000237,2]
[399685662,1766620250935,-153.0,0.000237,2]
[399685663,1766620250946,-153.0,0.000237,2]
[399685664,1766620250958,-153.0,0.000237,2]
[399685665,1766620250968,-153.0,0.000237,2]
[399685666,1766620250982,-153.0,0.000237,2]
[399685667,1766620250996,-153.0,0.000237,2]
[399685668,1766620251008,-153.0,0.000237,2]
[399685669,1766620251020,-153.0,0.000237,2]
[399685670,1766620251031,-153.0,0.000237,2]
[399685671,1766620251041,-153.0,0.000237,2]
[399685672,1766620251052,-153.0,0.000237,2]
[399685673,1766620251064,-153.0,0.000237,2]
[399685674,1766620251076,-153.0,0.000237,2]
[399685675,1766620251090,-153.0,0.000237,2]
[399685676,1766620251103,-153.0,0.000237,2]
[399685677,1766620251115,-153.0,0.000237,2]
[399685678,1766620251127,-153.0,0.000237,2]
[399685679,1766620251138,-153.0,0.000237,2]
[399685680,1766620251149,-153.0,0.000237,2]
[399685681,1766620251161,-153.0,0.000237,2]
[399685682,1766620251172,-153.0,0.000237,2]
[399685683,1766620251183,-153.0,0.000237,2]
[399685684,1766620251195,-153.0,0.000237,2]
[399685685,1766620251206,-153.0,0.000237,2]
[399685686,1766620251218,-153.0,0.000237,2]
[399685687,1766620251230,-153.0,0.000237,2]
[399685688,1766620251242,-153.0,0.000237,2]
[399685689,1766620251253,-153.0,0.000237,2]
[399685690,1766620251264,-153.0,0.000237,2]
[399685691,1766620251276,-166.34344729,0.000237,2]
[399685692,1766620251288,-1000.0,0.000237,2]
[399685693,1766620251300,-1098.0,0.00023747,2]
[399685694,1766620251311,-12584.9,0.0002391,2]
[399685695,1766620251323,-16637.69571982,0.00024,2]
[399685696,1766620251335,-1017.66970628,0.00024,2]
[399685697,1766620251347,-3600.0,0.00024,2]
[399685698,1766620251358,-312.89093905,0.00024,2]
[399685699,1766620251370,-252.86708874,0.00024,2]
[399685700,1766620251381,-405.0,0.00024164,7]
[399685701,1766620251393,-150.0,0.0002421,2]
[399685702,1766620251404,-150.0,0.0002421,2]
[399685703,1766620251416,-150.0,0.0002421,2]
[399685704,1766620251427,-150.0,0.0002421,2]
[399685705,1766620251438,-4261.67,0.00024292,2]
[399685706,1766620251449,-3163.33170673,0.00024484,3]
[399685707,1766620251462,-151.1,0.00024599,2]
[399685708,1766620251474,-697.66,0.00024658,2]
[399685709,1766620251485,-1000.0,0.00024658,2]
[399685710,1766620251497,-151.0,0.00024658,2]
[399685711,1766620251509,-151.0,0.00024658,2]
[399685712,1766620251521,-151.0,0.00024658,2]
[399685713,1766620251532,-151.0,0.00024658,2]
[399685714,1766620251544,-151.0,0.00024658,2]
[399685715,1766620251556,-191.18253,0.00024658,2]
[399685716,1766620251568,-151.0,0.00024658,2]
[399685717,1766620251580,-151.0,0.00024658,2]
[399685718,1766620251592,-151.0,0.00024658,2]
[399685719,1766620251603,-151.0,0.00024658,2]
[399685720,1766620251615,-151.0,0.00024658,2]
[399685721,1766620251627,-151.0,0.00024658,2]
[399685722,1766620251640,-151.0,0.00024658,2]
[399685723,1766620251651,-151.0,0.00024658,2]
[399685724,1766620251663,-151.0,0.00024658,2]
[399685725,1766620251674,-151.0,0.00024658,2]
[399685726,1766620251686,-151.0,0.00024658,2]
[399685727,1766620251705,-151.0,0.00024658,2]
[399685728,1766620251717,-151.0,0.00024658,2]
[399685729,1766620251728,-151.0,0.00024658,2]
[399685730,1766620251740,-204.069289,0.00024658,2]
[399685731,1766620251752,-151.42395308,0.00024684,2]
[399685732,1766620251764,-178913.68,0.000248,7]
[399685733,1766620251776,-151.0,0.000248,7]
[399685734,1766620251788,-151.0,0.000248,7]
[399685735,1766620251799,-151.0,0.000248,7]
[399685736,1766620251811,-151.0,0.000248,7]
[399685737,1766620251822,-151.0,0.000248,7]
[399685738,1766620251834,-151.0,0.000248,7]
[399685739,1766620251847,-151.0,0.000248,7]
[399685740,1766620251859,-151.0,0.000248,7]
[399685741,1766620251871,-151.0,0.000248,7]
[399685742,1766620251883,-151.0,0.000248,7]
[399685743,1766620251895,-151.0,0.000248,7]
[399685744,1766620251907,-151.0,0.000248,7]
[399685745,1766620251918,-151.0,0.000248,7]
[399685746,1766620251930,-151.0,0.000248,7]
[399685747,1766620251942,-151.0,0.000248,7]
[399685748,1766620251953,-151.0,0.000248,7]
[399685749,1766620251964,-151.0,0.000248,7]
[399685750,1766620251976,-606012.731508,0.000248,2]
[399685751,1766620251988,-151.0,0.000248,7]
[399685752,1766620252000,-151.0,0.000248,7]
[399685753,1766620252011,-685.135947,0.000248,7]
[399685754,1766620252023,-685.135947,0.000248,7]
[399685755,1766620252034,-151.0,0.000248,7]
[399685756,1766620252046,-151.0,0.000248,7]
[399685757,1766620252058,-685.135947,0.000248,7]
[399685758,1766620252069,-685.135947,0.000248,7]
[399685759,1766620252081,-685.135947,0.000248,7]
[399685760,1766620252093,-685.135947,0.000248,7]
[399685761,1766620252104,-685.135947,0.000248,7]
[399685762,1766620252115,-685.135946,0.000248,7]
[399685763,1766620252127,-151.0,0.000248,7]
[399685764,1766620252139,-151.0,0.000248,7]
[399685765,1766620252150,-151.0,0.000248,7]
[399685766,1766620252161,-151.0,0.000248,7]
[399685767,1766620252172,-384.79665381,0.00024835,2]
[399685768,1766620252183,-211.90100682,0.00024877,2]
[399685769,1766620252194,-21925.4872441,0.000249,2]
[399685770,1766620252205,-1098.0,0.00024935,2]
[399685771,1766620252217,-226.08054689,0.00024986,2]
[399685772,1766620252228,-5319.9001919,0.00025,2]
[399685773,1766620252239,-169.91752112,0.00025,5]
[399685774,1766620252251,-500.0,0.00025,7]
[399685775,1766620252262,-150.0,0.00025,2]
[399685776,1766620252275,-150.0,0.00025,2]
[399685777,1766620252286,-150.0,0.00025,2]
[399685778,1766620252298,-150.0,0.00025,2]
[399685779,1766620252310,-150.0,0.00025,2]
[399685780,1766620252322,-150.0,0.00025,2]
[399685781,1766620252333,-288.717,0.00025,2]
[399685782,1766620252346,-150.0,0.00025,2]
[399685783,1766620252358,-450.0,0.00025,2]
[399685784,1766620252369,-150.0,0.00025032,2]
[399685785,1766620252381,-150.0,0.00025032,2]
[399685786,1766620252393,-150.0,0.00025032,2]
[399685787,1766620252404,-150.0,0.00025032,2]
[399685788,1766620252416,-150.0,0.00025032,2]
[399685789,1766620252427,-150.0,0.00025032,2]
[399685790,1766620252438,-150.0,0.00025032,2]
[399685791,1766620252450,-150.0,0.00025032,2]
[399685792,1766620252461,-150.0,0.00025032,2]
[399685793,1766620252472,-160.0,0.00025152,3]
[399685794,1766620252484,-289.6,0.000252,7]
[399685795,1766620252495,-2000.0,0.000252,2]
[399685796,1766620252506,-12584.9,0.00025404,2]
[399685797,1766620252517,-150.0,0.00025499,2]
[399685798,1766620252528,-150.0,0.00025499,2]
[399685799,1766620252540,-150.0,0.00025499,2]
[399685800,1766620252552,-150.0,0.00025499,2]
[399685801,1766620252563,-1383.32534736,0.000257,2]
[399685802,1766620252574,-1383.32534736,0.000257,2]
[399685803,1766620252586,-400.0,0.00025775,7]
[399685804,1766620252597,-150.0,0.00025854,2]
[399685805,1766620252608,-4499.11102236,0.00026,2]
[399685806,1766620252620,-5007.39379568,0.00026,2]
[399685807,1766620252632,-150.0,0.00026,2]
[399685808,1766620252643,-178913.68,0.00026,7]
[399685809,1766620252655,-223.0,0.00026,7]
[399685810,1766620252666,-160.0,0.00026008,3]
[399685811,1766620252678,-151.4239531,0.00026136,2]
[399685812,1766620252689,-453.22725362,0.00026161,2]
[399685813,1766620252699,-223.0,0.00026164,7]
[399685814,1766620252711,-1098.0,0.00026181,2]
[399685815,1766620252724,-1503.06,0.000262,14]
[399685816,1766620252736,-1609.0,0.00026221,2]
[399685817,1766620252747,-612.0,0.00026221,2]
[399685818,1766620252759,-3458.0,0.00026221,2]
[399685819,1766620252770,-1326.0,0.00026221,2]
[399685820,1766620252782,-1263.0,0.00026221,2]
[399685821,1766620252793,-432.0,0.00026221,2]
[399685822,1766620252804,-1198.0,0.00026221,2]
[399685823,1766620252815,-912.0,0.00026221,2]
[399685824,1766620252827,-4807.0,0.00026221,2]
[399685825,1766620252837,-2430.0,0.00026221,2]
[399685826,1766620252848,-1030.94,0.00026244,30]
[399685827,1766620252860,-27342.53075427,0.000264,2]
[399685828,1766620252872,-579.11026946,0.000265,2]
[399685829,1766620252883,-1000.0,0.00026676,2]
[399685830,1766620252895,-289.6,0.000267,7]
[399685831,1766620252906,-12584.9,0.00026899,2]
[399685832,1766620252917,-5000.0,0.000269,2]
[399685833,1766620252929,-200.0,0.00027,2]
[399685834,1766620252940,-2000.0,0.00027,2]
[399685835,1766620252951,-500.0,0.00027,2]
[399685836,1766620252962,-2423.465863,0.0002701,2]
[399685837,1766620252973,-3666.24,0.00027123,2]
[399685838,1766620252985,-223.0,0.00027185,7]
[399685839,1766620252996,-151.1,0.00027199,7]
[399685840,1766620253007,-150.0,0.00027369,2]
[399685841,1766620253019,-400.0,0.00027386,7]
[399685842,1766620253030,-4089.34865562,0.0002739,2]
[399685843,1766620253041,-8078.46780557,0.0002739,2]
[399685844,1766620253053,-151.0,0.00027397,2]
[399685845,1766620253064,-697.66,0.00027397,2]
[399685846,1766620253077,-500.0,0.00027397,20]
[399685847,1766620253088,-151.195056,0.00027397,7]
[399685848,1766620253100,-874.57,0.00027397,16]